[Event "*** Titled Tuesday Blitz"]
[Site "Chess.com"]
[Date "2018.08.07"]
[Round "3"]
[White "Zaven_ChessMood"]
[Black "Margency"]
[Result "0-1"]
[WhiteElo "2884"]
[BlackElo "2722"]
[TimeControl "180+2"]
[EndTime "13:35:43 PDT"]
[Termination "Margency won by resignation"]

1. e4 {[%clk 0:03:01.2]} 1... c5 {[%clk 0:03:01.1]} 2. Nf3 {[%clk 0:03:01.6]}
2... d6 {[%clk 0:03:02.1]} 3. d4 {[%clk 0:03:02.6]} 3... cxd4 {[%clk 0:03:03.3]}
4. Nxd4 {[%clk 0:03:04.3]} 4... Nf6 {[%clk 0:03:04.6]} 5. Nc3 {[%clk 0:03:05.9]}
5... a6 {[%clk 0:03:05.8]} 6. h3 {[%clk 0:03:06.9]} 6... e6 {[%clk 0:03:01.8]}
7. g4 {[%clk 0:03:07]} 7... h6 {[%clk 0:03:01.4]} 8. Bg2 {[%clk 0:03:07.7]} 8...
Be7 {[%clk 0:02:55.4]} 9. Be3 {[%clk 0:03:08.1]} 9... g5 {[%clk 0:02:55.5]} 10.
Qe2 {[%clk 0:03:07.4]} 10... Nbd7 {[%clk 0:02:56.1]} 11. O-O-O {[%clk
0:03:08.9]} 11... Ne5 {[%clk 0:02:55.3]} 12. f4 {[%clk 0:03:02.4]} 12... gxf4
{[%clk 0:02:55.9]} 13. Bxf4 {[%clk 0:03:04]} 13... Bd7 {[%clk 0:02:57.4]} 14.
Nf3 {[%clk 0:03:04.1]} 14... Qa5 {[%clk 0:02:46.1]} 15. Kb1 {[%clk 0:03:00.1]}
15... Rc8 {[%clk 0:02:45.1]} 16. Nxe5 {[%clk 0:02:59.7]} 16... dxe5 {[%clk
0:02:44]} 17. Bd2 {[%clk 0:03:01.3]} 17... Qc7 {[%clk 0:02:40.6]} 18. h4 {[%clk
0:03:01.9]} 18... h5 {[%clk 0:02:20.8]} 19. gxh5 {[%clk 0:02:56.9]} 19... Nxh5
{[%clk 0:02:19.2]} 20. Qf3 {[%clk 0:02:39.2]} 20... b5 {[%clk 0:02:14.3]} 21.
Rc1 {[%clk 0:02:34.4]} 21... a5 {[%clk 0:02:04.9]} 22. Bf1 {[%clk 0:02:30]}
22... b4 {[%clk 0:02:01.5]} 23. Ne2 {[%clk 0:02:31.1]} 23... Bc6 {[%clk
0:01:47.4]} 24. Bg5 {[%clk 0:02:27.6]} 24... f6 {[%clk 0:01:44.4]} 25. Be3
{[%clk 0:02:26.3]} 25... f5 {[%clk 0:01:43.5]} 26. Bg2 {[%clk 0:02:20.1]} 26...
Bxe4 {[%clk 0:01:41.1]} 27. Qf2 {[%clk 0:02:19.9]} 27... Bxc2+ {[%clk
0:01:29.1]} 28. Ka1 {[%clk 0:02:20.5]} 28... a4 {[%clk 0:01:20.6]} 29. Rxc2
{[%clk 0:02:02.3]} 29... Qxc2 {[%clk 0:01:21]} 30. Rc1 {[%clk 0:02:02.9]} 30...
b3 {[%clk 0:01:13.5]} 31. Rxc2 {[%clk 0:02:02.1]} 31... Rxc2 {[%clk 0:01:13.9]}
32. Bc6+ {[%clk 0:01:53.4]} 32... Rxc6 {[%clk 0:01:10]} 33. Nc3 {[%clk
0:01:52.3]} 33... Kf7 {[%clk 0:00:59.6]} 34. Nxa4 {[%clk 0:01:50.4]} 34... Rc2
{[%clk 0:00:52]} 35. Qf1 {[%clk 0:01:37.4]} 35... Ng3 {[%clk 0:00:48.3]} 36. Qb5
{[%clk 0:01:36.5]} 36... Re2 {[%clk 0:00:41.9]} 37. axb3 {[%clk 0:01:22]} 37...
Rxe3 {[%clk 0:00:41.7]} 38. Qb6 {[%clk 0:01:21.5]} 38... Re1+ {[%clk 0:00:39.8]}
39. Ka2 {[%clk 0:01:22.8]} 39... Rxh4 {[%clk 0:00:36]} 40. Nc5 {[%clk
0:01:19.7]} 40... Bxc5 {[%clk 0:00:32.1]} 41. Qxc5 {[%clk 0:01:21.2]} 41... Rhh1
{[%clk 0:00:32.4]} 42. b4 {[%clk 0:01:20.9]} 42... Ne4 {[%clk 0:00:33.3]} 43.
Qxe5 {[%clk 0:01:02.6]} 43... Nf6 {[%clk 0:00:25.4]} 44. Qc7+ {[%clk 0:01:02.7]}
44... Kg6 {[%clk 0:00:26.5]} 45. Qg3+ {[%clk 0:01:01.7]} 45... Ng4 {[%clk
0:00:25.2]} 46. b5 {[%clk 0:01:02.8]} 46... Ra1+ {[%clk 0:00:25.5]} 47. Kb3
{[%clk 0:01:03.5]} 47... Rhe1 {[%clk 0:00:26.7]} 48. b6 {[%clk 0:00:51.6]} 48...
Ra6 {[%clk 0:00:27.2]} 49. Qxe1 {[%clk 0:00:48.3]} 49... Rxb6+ {[%clk
0:00:28.3]} 50. Ka2 {[%clk 0:00:48.1]} 50... e5 {[%clk 0:00:26.7]} 51. b4 {[%clk
0:00:47.2]} 51... e4 {[%clk 0:00:27.5]} 52. Kb3 {[%clk 0:00:47.1]} 52... e3
{[%clk 0:00:28.7]} 53. Kc4 {[%clk 0:00:45.3]} 53... Kg5 {[%clk 0:00:28.2]} 54.
Kc5 {[%clk 0:00:46]} 54... Rb8 {[%clk 0:00:27.2]} 55. Qa1 {[%clk 0:00:45.5]}
55... e2 {[%clk 0:00:22.4]} 56. Qc1+ {[%clk 0:00:42.6]} 56... f4 {[%clk
0:00:22.2]} 57. Qd2 {[%clk 0:00:43.1]} 57... Re8 {[%clk 0:00:21.6]} 58. Qe1
{[%clk 0:00:42.2]} 58... f3 {[%clk 0:00:21.7]} 59. Qc1+ {[%clk 0:00:41.2]} 59...
Re3 {[%clk 0:00:22.6]} 60. b5 {[%clk 0:00:34.5]} 60... e1=Q {[%clk 0:00:23.2]}
0-1

[Event "*** Titled Tuesday Blitz"]
[Site "Chess.com"]
[Date "2018.08.07"]
[Round "3"]
[White "ZoltanChef"]
[Black "Egorov_Pavel"]
[Result "1-0"]
[WhiteElo "2205"]
[BlackElo "2294"]
[TimeControl "180+2"]
[EndTime "13:35:57 PDT"]
[Termination "ZoltanChef won by checkmate"]

1. d4 {[%clk 0:03:01.9]} 1... Nf6 {[%clk 0:03:00.8]} 2. Nf3 {[%clk 0:03:02.1]}
2... g6 {[%clk 0:03:01]} 3. Nc3 {[%clk 0:03:02.3]} 3... d5 {[%clk 0:02:59.4]} 4.
Bg5 {[%clk 0:03:01.9]} 4... Bg7 {[%clk 0:03:00.5]} 5. e3 {[%clk 0:03:02.3]} 5...
c5 {[%clk 0:03:01.7]} 6. dxc5 {[%clk 0:03:02]} 6... O-O {[%clk 0:03:00.3]} 7.
Be2 {[%clk 0:02:56.4]} 7... e6 {[%clk 0:02:38.8]} 8. Nd4 {[%clk 0:02:35]} 8...
h6 {[%clk 0:02:33.5]} 9. Bh4 {[%clk 0:02:32.4]} 9... Qa5 {[%clk 0:02:11.5]} 10.
Nb3 {[%clk 0:02:32.5]} 10... Qd8 {[%clk 0:02:09.2]} 11. O-O {[%clk 0:02:30.6]}
11... Nbd7 {[%clk 0:02:03.9]} 12. e4 {[%clk 0:02:18.9]} 12... g5 {[%clk
0:02:00.2]} 13. Bg3 {[%clk 0:02:17.8]} 13... Nxe4 {[%clk 0:01:59.5]} 14. Nxe4
{[%clk 0:02:17.7]} 14... dxe4 {[%clk 0:02:01.4]} 15. c3 {[%clk 0:02:17.1]} 15...
e5 {[%clk 0:01:50.5]} 16. Qd5 {[%clk 0:02:10.7]} 16... Qc7 {[%clk 0:01:43.6]}
17. Rad1 {[%clk 0:02:05]} 17... Re8 {[%clk 0:01:24]} 18. Bb5 {[%clk 0:01:42.4]}
18... Nf6 {[%clk 0:01:17.3]} 19. Qd6 {[%clk 0:01:30.9]} 19... Qxd6 {[%clk
0:01:05.8]} 20. Rxd6 {[%clk 0:01:31.1]} 20... Re7 {[%clk 0:00:56.2]} 21. Rd8+
{[%clk 0:01:27.6]} 21... Bf8 {[%clk 0:00:51.5]} 22. Rfd1 {[%clk 0:01:25]} 22...
Bg4 {[%clk 0:00:47.4]} 23. R1d6 {[%clk 0:01:21.4]} 23... Rxd8 {[%clk 0:00:46.1]}
24. Rxd8 {[%clk 0:01:22.2]} 24... a6 {[%clk 0:00:42.2]} 25. Bc4 {[%clk
0:01:22.3]} 25... Rd7 {[%clk 0:00:38.3]} 26. Rxd7 {[%clk 0:01:17.2]} 26... Nxd7
{[%clk 0:00:40.2]} 27. Bd5 {[%clk 0:01:15.8]} 27... Nxc5 {[%clk 0:00:35.5]} 28.
Nxc5 {[%clk 0:01:13.7]} 28... Bxc5 {[%clk 0:00:37.4]} 29. Bxe5 {[%clk
0:01:11.6]} 29... e3 {[%clk 0:00:33.2]} 30. Kf1 {[%clk 0:00:56.1]} 30... exf2
{[%clk 0:00:15]} 31. Bxb7 {[%clk 0:00:56]} 31... a5 {[%clk 0:00:14.7]} 32. Bd4
{[%clk 0:00:55.1]} 32... Bd6 {[%clk 0:00:13.6]} 33. g3 {[%clk 0:00:53.8]} 33...
Be6 {[%clk 0:00:13.3]} 34. a3 {[%clk 0:00:52.6]} 34... f5 {[%clk 0:00:12.8]} 35.
Kxf2 {[%clk 0:00:52.5]} 35... f4 {[%clk 0:00:13.1]} 36. b4 {[%clk 0:00:52.4]}
36... fxg3+ {[%clk 0:00:14.1]} 37. hxg3 {[%clk 0:00:53]} 37... axb4 {[%clk
0:00:16]} 38. cxb4 {[%clk 0:00:51.5]} 38... h5 {[%clk 0:00:16.2]} 39. Bc5 {[%clk
0:00:52.2]} 39... Be5 {[%clk 0:00:14.6]} 40. a4 {[%clk 0:00:53.1]} 40... h4
{[%clk 0:00:14.6]} 41. gxh4 {[%clk 0:00:54.2]} 41... gxh4 {[%clk 0:00:16.5]} 42.
a5 {[%clk 0:00:55.6]} 42... Bc4 {[%clk 0:00:08.4]} 43. a6 {[%clk 0:00:55.2]}
43... Bg3+ {[%clk 0:00:07.3]} 44. Kg2 {[%clk 0:00:54.5]} 44... Bxa6 {[%clk
0:00:07]} 45. Bxa6 {[%clk 0:00:54.8]} 45... Be1 {[%clk 0:00:07.6]} 46. b5 {[%clk
0:00:54.4]} 46... Kf7 {[%clk 0:00:07.2]} 47. b6 {[%clk 0:00:54.6]} 47... Ba5
{[%clk 0:00:07.8]} 48. b7 {[%clk 0:00:54.3]} 48... Bc7 {[%clk 0:00:09.4]} 49.
Ba7 {[%clk 0:00:54.4]} 49... Ke7 {[%clk 0:00:10.8]} 50. b8=Q {[%clk 0:00:55.1]}
50... Bxb8 {[%clk 0:00:12.4]} 51. Bxb8 {[%clk 0:00:57]} 51... Kd7 {[%clk
0:00:12.9]} 52. Bf4 {[%clk 0:00:58.2]} 52... Kc6 {[%clk 0:00:14.8]} 53. Bd3
{[%clk 0:00:59.2]} 53... Kd5 {[%clk 0:00:16.7]} 54. Be3 {[%clk 0:00:59.2]} 54...
Ke5 {[%clk 0:00:18.4]} 55. Kh3 {[%clk 0:01:00.3]} 55... Kf6 {[%clk 0:00:20.3]}
56. Kxh4 {[%clk 0:01:01.7]} 56... Ke5 {[%clk 0:00:22.2]} 57. Kg4 {[%clk
0:01:02.4]} 57... Kd5 {[%clk 0:00:23]} 58. Kf5 {[%clk 0:01:02.5]} 58... Kc6
{[%clk 0:00:23.7]} 59. Bc4 {[%clk 0:01:03]} 59... Kb7 {[%clk 0:00:13.7]} 60. Ke6
{[%clk 0:01:01.5]} 60... Kc6 {[%clk 0:00:13.8]} 61. Bd4 {[%clk 0:01:02.5]} 61...
Kb7 {[%clk 0:00:14.9]} 62. Kd6 {[%clk 0:01:02.4]} 62... Ka8 {[%clk 0:00:15.3]}
63. Kc6 {[%clk 0:01:02.2]} 63... Kb8 {[%clk 0:00:16.6]} 64. Be6 {[%clk
0:01:01.7]} 64... Ka8 {[%clk 0:00:17.9]} 65. Kb6 {[%clk 0:01:02.4]} 65... Kb8
{[%clk 0:00:18.8]} 66. Be5+ {[%clk 0:01:03.6]} 66... Ka8 {[%clk 0:00:19.1]} 67.
Bd5# {[%clk 0:01:05]} 1-0

[Event "*** Titled Tuesday Blitz"]
[Site "Chess.com"]
[Date "2018.08.07"]
[Round "3"]
[White "MaxLeto"]
[Black "ruvat"]
[Result "1-0"]
[WhiteElo "2393"]
[BlackElo "2257"]
[TimeControl "180+2"]
[EndTime "13:36:03 PDT"]
[Termination "MaxLeto won on time"]

1. d4 {[%clk 0:03:00]} 1... d6 {[%clk 0:02:59]} 2. Bf4 {[%clk 0:03:01.1]} 2...
Nd7 {[%clk 0:02:58.4]} 3. e3 {[%clk 0:03:02.5]} 3... g6 {[%clk 0:02:58]} 4. Nf3
{[%clk 0:03:04]} 4... Bg7 {[%clk 0:02:58.2]} 5. h4 {[%clk 0:03:05.3]} 5... e5
{[%clk 0:02:57.3]} 6. Bg3 {[%clk 0:03:05.1]} 6... exd4 {[%clk 0:02:44.4]} 7.
exd4 {[%clk 0:03:04.6]} 7... Ngf6 {[%clk 0:02:43.9]} 8. Be2 {[%clk 0:02:51.7]}
8... O-O {[%clk 0:02:39.8]} 9. Nc3 {[%clk 0:02:53.1]} 9... Re8 {[%clk 0:02:37]}
10. Qd2 {[%clk 0:02:54.2]} 10... Nh5 {[%clk 0:02:29.1]} 11. Bh2 {[%clk
0:02:47.6]} 11... Ndf6 {[%clk 0:02:29.1]} 12. O-O-O {[%clk 0:02:44.6]} 12... Ng4
{[%clk 0:02:27.2]} 13. Bg1 {[%clk 0:02:45.9]} 13... Bf5 {[%clk 0:02:22.4]} 14.
Ng5 {[%clk 0:02:39.2]} 14... h6 {[%clk 0:01:40.5]} 15. f3 {[%clk 0:02:01.3]}
15... Ng3 {[%clk 0:01:40.2]} 16. fxg4 {[%clk 0:01:58.7]} 16... Nxe2+ {[%clk
0:01:36.5]} 17. Nxe2 {[%clk 0:01:56.1]} 17... Bxg4 {[%clk 0:01:34.5]} 18. Nf3
{[%clk 0:01:56.1]} 18... Qf6 {[%clk 0:01:24.1]} 19. Nf4 {[%clk 0:01:38.5]} 19...
c6 {[%clk 0:01:16.4]} 20. Be3 {[%clk 0:01:30.4]} 20... Re4 {[%clk 0:01:10.6]}
21. Rde1 {[%clk 0:01:23.3]} 21... Rae8 {[%clk 0:01:10.8]} 22. Rhf1 {[%clk
0:01:12.8]} 22... Kh7 {[%clk 0:00:51.5]} 23. Nd3 {[%clk 0:00:52.5]} 23... Bxf3
{[%clk 0:00:42.8]} 24. Rxf3 {[%clk 0:00:52.1]} 24... Qe7 {[%clk 0:00:40.2]} 25.
Bf2 {[%clk 0:00:46.3]} 25... f5 {[%clk 0:00:36]} 26. h5 {[%clk 0:00:37.2]} 26...
Rxe1+ {[%clk 0:00:20.7]} 27. Qxe1 {[%clk 0:00:36.6]} 27... Qxe1+ {[%clk
0:00:21.1]} 28. Bxe1 {[%clk 0:00:35.9]} 28... Bxd4 {[%clk 0:00:21.2]} 29. hxg6+
{[%clk 0:00:30.7]} 29... Kxg6 {[%clk 0:00:22.2]} 30. Bg3 {[%clk 0:00:32.6]}
30... d5 {[%clk 0:00:21]} 31. c3 {[%clk 0:00:32.9]} 31... Bf6 {[%clk 0:00:21.1]}
32. Nf4+ {[%clk 0:00:33.1]} 32... Kh7 {[%clk 0:00:19.8]} 33. Kd2 {[%clk
0:00:33]} 33... Bg5 {[%clk 0:00:20.2]} 34. Kd3 {[%clk 0:00:32.8]} 34... Re4
{[%clk 0:00:20.9]} 35. Nh3 {[%clk 0:00:29.1]} 35... Kg6 {[%clk 0:00:19.9]} 36.
Bf2 {[%clk 0:00:24.6]} 36... b6 {[%clk 0:00:16.3]} 37. Be3 {[%clk 0:00:23.4]}
37... Rg4 {[%clk 0:00:16.2]} 38. g3 {[%clk 0:00:20]} 38... Kf6 {[%clk
0:00:15.1]} 39. Nf2 {[%clk 0:00:17.2]} 39... Ra4 {[%clk 0:00:13.8]} 40. a3
{[%clk 0:00:17.5]} 40... Re4 {[%clk 0:00:13.5]} 41. Nh3 {[%clk 0:00:07.7]} 41...
c5 {[%clk 0:00:11.7]} 42. Nf2 {[%clk 0:00:08.2]} 42... a5 {[%clk 0:00:10.7]} 43.
Ke2 {[%clk 0:00:06.5]} 43... Re7 {[%clk 0:00:09.7]} 44. Kd3 {[%clk 0:00:08]}
44... Re4 {[%clk 0:00:09.8]} 45. Nh3 {[%clk 0:00:08.2]} 45... Rg4 {[%clk
0:00:07.3]} 46. Nf2 {[%clk 0:00:08.9]} 46... Re4 {[%clk 0:00:07.3]} 47. g4
{[%clk 0:00:10.2]} 47... Rxe3+ {[%clk 0:00:03.7]} 48. Rxe3 {[%clk 0:00:11.1]}
48... Bxe3 {[%clk 0:00:04.4]} 49. Kxe3 {[%clk 0:00:13]} 49... Kg5 {[%clk
0:00:04.3]} 50. Kf3 {[%clk 0:00:14.1]} 50... fxg4+ {[%clk 0:00:03.9]} 51. Nxg4
{[%clk 0:00:15.4]} 51... h5 {[%clk 0:00:04.5]} 52. Ne3 {[%clk 0:00:16.1]} 52...
d4 {[%clk 0:00:05.3]} 53. Nd5 {[%clk 0:00:13.8]} 53... b5 {[%clk 0:00:02.1]} 54.
cxd4 {[%clk 0:00:14.3]} 54... cxd4 {[%clk 0:00:03.1]} 55. Nf4 {[%clk 0:00:15.9]}
55... h4 {[%clk 0:00:03.6]} 56. Nh3+ {[%clk 0:00:14.5]} 56... Kf5 {[%clk
0:00:05.5]} 57. Nf2 {[%clk 0:00:16.1]} 57... Ke5 {[%clk 0:00:03.1]} 58. Kg4
{[%clk 0:00:17.3]} 58... Kd5 {[%clk 0:00:02.9]} 59. b3 {[%clk 0:00:18.7]} 1-0

[Event "*** Titled Tuesday Blitz"]
[Site "Chess.com"]
[Date "2018.08.07"]
[Round "3"]
[White "pedromartinez91"]
[Black "LittlePeasant"]
[Result "1/2-1/2"]
[WhiteElo "2418"]
[BlackElo "2775"]
[TimeControl "180+2"]
[EndTime "13:36:11 PDT"]
[Termination "Game drawn - insufficient material"]

1. e4 {[%clk 0:03:01.9]} 1... c5 {[%clk 0:03:00.7]} 2. Nf3 {[%clk 0:03:02.8]}
2... e6 {[%clk 0:03:01.8]} 3. c3 {[%clk 0:03:02.8]} 3... Nf6 {[%clk 0:02:57.7]}
4. e5 {[%clk 0:03:04]} 4... Nd5 {[%clk 0:02:58.3]} 5. b4 {[%clk 0:03:05.7]} 5...
cxb4 {[%clk 0:02:56]} 6. c4 {[%clk 0:03:06.5]} 6... Nc7 {[%clk 0:02:54.6]} 7. d4
{[%clk 0:03:08]} 7... d6 {[%clk 0:02:54.2]} 8. exd6 {[%clk 0:03:09.5]} 8... Bxd6
{[%clk 0:02:54.7]} 9. Bd3 {[%clk 0:03:10.7]} 9... b6 {[%clk 0:02:52]} 10. Be4
{[%clk 0:03:05.9]} 10... Ba6 {[%clk 0:02:46.8]} 11. Nbd2 {[%clk 0:02:46]} 11...
O-O {[%clk 0:02:28.8]} 12. O-O {[%clk 0:02:37.4]} 12... Nd7 {[%clk 0:02:29.4]}
13. Bxa8 {[%clk 0:02:37.8]} 13... Qxa8 {[%clk 0:02:31.3]} 14. Re1 {[%clk
0:02:35.2]} 14... Rd8 {[%clk 0:02:24]} 15. Bb2 {[%clk 0:02:30.4]} 15... Bf8
{[%clk 0:02:20.1]} 16. Qb3 {[%clk 0:02:31]} 16... Bb7 {[%clk 0:02:19.3]} 17. a3
{[%clk 0:02:27.6]} 17... a5 {[%clk 0:02:18.5]} 18. axb4 {[%clk 0:02:27.2]} 18...
Bxb4 {[%clk 0:02:20.4]} 19. Bc3 {[%clk 0:02:28.1]} 19... Na6 {[%clk 0:02:16]}
20. Reb1 {[%clk 0:02:15.9]} 20... h6 {[%clk 0:02:12]} 21. h3 {[%clk 0:02:13.3]}
21... Nf6 {[%clk 0:01:57.8]} 22. Bxb4 {[%clk 0:01:47.7]} 22... Nxb4 {[%clk
0:01:58.7]} 23. Qxb4 {[%clk 0:01:42.5]} 23... axb4 {[%clk 0:02:00.6]} 24. Rxa8
{[%clk 0:01:43.8]} 24... Bxa8 {[%clk 0:01:59.3]} 25. Rxb4 {[%clk 0:01:45.4]}
25... Nd7 {[%clk 0:02:01]} 26. Kf1 {[%clk 0:01:41.1]} 26... Kf8 {[%clk
0:02:01.5]} 27. Ke2 {[%clk 0:01:42.4]} 27... Ke7 {[%clk 0:02:02.8]} 28. Ke3
{[%clk 0:01:43.8]} 28... Rc8 {[%clk 0:01:58.7]} 29. Ra4 {[%clk 0:01:42.6]} 29...
Bc6 {[%clk 0:01:52.2]} 30. Ra7 {[%clk 0:01:42.7]} 30... f6 {[%clk 0:01:47.9]}
31. Ne1 {[%clk 0:01:39.7]} 31... g5 {[%clk 0:01:31.1]} 32. f3 {[%clk 0:01:40.4]}
32... b5 {[%clk 0:01:23.5]} 33. Nd3 {[%clk 0:01:25.7]} 33... bxc4 {[%clk
0:01:06.5]} 34. Nxc4 {[%clk 0:01:26.6]} 34... Ra8 {[%clk 0:01:08.1]} 35. Nb4
{[%clk 0:01:15.8]} 35... Bxf3 {[%clk 0:00:18.2]} 36. gxf3 {[%clk 0:01:12.2]}
36... Rxa7 {[%clk 0:00:19.6]} 37. Nc6+ {[%clk 0:01:13.4]} 37... Kf7 {[%clk
0:00:18.2]} 38. Nxa7 {[%clk 0:01:14.4]} 38... h5 {[%clk 0:00:19.7]} 39. Nc6
{[%clk 0:01:07.3]} 39... Nf8 {[%clk 0:00:21]} 40. Nd8+ {[%clk 0:00:54.9]} 40...
Ke7 {[%clk 0:00:21.8]} 41. Nc6+ {[%clk 0:00:55.8]} 41... Kf7 {[%clk 0:00:23.3]}
42. Nd6+ {[%clk 0:00:55.7]} 42... Kg6 {[%clk 0:00:17.8]} 43. Nd8 {[%clk
0:00:56.7]} 43... h4 {[%clk 0:00:15.6]} 44. Ne4 {[%clk 0:00:53.8]} 44... f5
{[%clk 0:00:16.4]} 45. Nc5 {[%clk 0:00:54.7]} 45... Kf6 {[%clk 0:00:17.4]} 46.
Nc6 {[%clk 0:00:48.6]} 46... Ng6 {[%clk 0:00:18.1]} 47. Nd7+ {[%clk 0:00:49.7]}
47... Kg7 {[%clk 0:00:17.1]} 48. Nd8 {[%clk 0:00:48.6]} 48... Nf4 {[%clk
0:00:17.8]} 49. Nc5 {[%clk 0:00:42.5]} 49... Kf6 {[%clk 0:00:18.6]} 50. Nd3
{[%clk 0:00:22.3]} 50... Nxh3 {[%clk 0:00:19]} 51. Nc6 {[%clk 0:00:22.7]} 51...
g4 {[%clk 0:00:17.8]} 52. fxg4 {[%clk 0:00:22.2]} 52... fxg4 {[%clk 0:00:19.7]}
53. Nce5 {[%clk 0:00:23.9]} 53... Kf5 {[%clk 0:00:20.8]} 54. Nc4 {[%clk
0:00:18.4]} 54... Ng1 {[%clk 0:00:18.4]} 55. Nd6+ {[%clk 0:00:18.1]} 55... Kg6
{[%clk 0:00:18.7]} 56. Kf2 {[%clk 0:00:19.2]} 56... Nf3 {[%clk 0:00:19.4]} 57.
Ne4 {[%clk 0:00:19.9]} 57... Nxd4 {[%clk 0:00:19.2]} 58. Ke3 {[%clk 0:00:20.3]}
58... Nc2+ {[%clk 0:00:19.8]} 59. Kf4 {[%clk 0:00:20.7]} 59... g3 {[%clk
0:00:19.7]} 60. Nxg3 {[%clk 0:00:15.1]} 60... hxg3 {[%clk 0:00:20.6]} 61. Kxg3
{[%clk 0:00:17]} 61... Kf5 {[%clk 0:00:22]} 62. Nc5 {[%clk 0:00:17.4]} 62... e5
{[%clk 0:00:23]} 63. Kf3 {[%clk 0:00:17.9]} 63... Nd4+ {[%clk 0:00:23.1]} 64.
Ke3 {[%clk 0:00:17.7]} 64... Nc2+ {[%clk 0:00:23.9]} 65. Kd2 {[%clk 0:00:18.3]}
65... Nb4 {[%clk 0:00:24.8]} 66. Nd7 {[%clk 0:00:17.9]} 66... e4 {[%clk
0:00:25.8]} 67. Nc5 {[%clk 0:00:19.1]} 67... Kf4 {[%clk 0:00:27.7]} 68. Nxe4
{[%clk 0:00:20.2]} 68... Kxe4 {[%clk 0:00:29.6]} 1/2-1/2